Cogmind - Beta 16.1 @@@ ROGUE MODE // 2026.01.11 @ 14:03:31 Player: Infomantis Result: Escaped! Performance ------------- Evolutions (9) 4500 Regions Visited (12) 2400 Robots Destroyed (136) 680 Value Destroyed (4958) 4958 Prototype IDs (43) 860 Alien Tech Used (0) 0 Bonus (4281) 4281 TOTAL SCORE: 17679 Bonus ------- Follower Combat Kills 481 Registered with UFD 300 Met Optimus in HQ 500 Win 3000 Cogmind --------- Core Integrity 744/1600 Matter 111/300 Energy 84/100 System Corruption 4% Temperature Cool (1) Movement Flying (20) Location To Epsilon Eridani Parts ------- > --- POWER (3) -------- (None) > --- PROPULSION (8) --- Experimental Gyrokinetic Inverter Experimental Q-thruster > --- UTILITY (12) ----- Advanced Signal Interpreter Advanced Targeting Computer Advanced Melee Analysis Suite > --- WEAPON (2) ------- Companion Sword > --- INVENTORY (5) ---- Cooled Antimatter Reactor High-density Centrium Leg Long-range Phase Cannon Peak State ------------ > --- POWER ------------ Particle Reactor Light Quantum Reactor > --- PROPULSION ------- Thunder Leg Thunder Leg Myomer Leg Myomer Leg Biometal Leg Improved Thunder Leg Experimental Biometal Leg > --- UTILITY ---------- Huge Storage Unit Advanced Sensor Array Advanced Signal Interpreter Advanced Melee Analysis Suite Advanced Melee Analysis Suite Microactuators Transmission Jammer Centrium Heavy Armor Plating Experimental Shield Generator Hacking Suite System Mapper > --- WEAPON ----------- Improved Grenade Launcher Companion Sword > --- INVENTORY -------- Micro Antimatter Reactor Xenon Bombardment Thruster Xenon Bombardment Thruster Field Propulsion Array Improved Diametric Drive High-capacity Storage Unit Experimental Energy Well Improved Matter Compressor Quantum Shading Machine Structural Scanner Improved Focal Shield Advanced Force Field AEGIS Remote Shield System Shield Improved Trap Extractor Compact HERF Cannon Long-range Phase Cannon Improved Datajack Improved Plasma Cutter [Rating: 158] Favorites ----------- Power Subdweller Power Source Engine Subdweller Power Source Power Core Micro Fission Core Reactor Particle Reactor Propulsion Compact Wheel Treads Light Treads Leg Flexi-carbon Leg Wheel Compact Wheel Hover Unit Antigrav System Flight Unit Experimental Q-thruster Utility Advanced Melee Analysis Suite Device Seismic Detector Storage Humpback Processor Advanced Melee Analysis Suite Hackware Hacking Suite Protection Makeshift Light Armor Plating Weapon Companion Sword Energy Gun Subdweller Laser Energy Cannon Long-range Phase Cannon Ballistic Gun Battle Rifle Ballistic Cannon Light Cannon Launcher Improved Grenade Launcher Special Weapon Remote Datajack Impact Weapon Heavy Hammer Slashing Weapon Companion Sword Special Melee Weapon Improved Datajack Build | -11 -10 -10 -10 -7 -5 -5 -5 -4 -3 -3 -2 -1 ------- Run | Yrd Mat Min Sub Scr Fac Upp Upp Fac Res Tes Res Acc Slots Evolved 18 | . . . . . 10 . . 2 2 . 2 2 Power 2 | . . . . . 1 . . . . . . 1 Propulsion 6 | . . . . . 3 . . 1 1 . . 1 Utility 10 | . . . . . 6 . . 1 1 . 2 . Weapon . | . . . . . . . . . . . . . Parts Attached 179 | 7 6 5 6 7 62 2 1 17 23 13 17 13 Power 31 | 1 2 1 1 1 10 . . 4 3 2 1 5 Engine 7 | 1 2 1 1 1 1 . . . . . . . Core 10 | . . . . . 8 . . 2 . . . . Reactor 14 | . . . . . 1 . . 2 3 2 1 5 Propulsion 60 | 2 . . 2 1 26 . . 7 9 2 10 1 Treads 5 | 2 . . . . . . . . . . 3 . Leg 31 | . . . . . 12 . . 7 8 2 2 . Wheel 10 | . . . 2 1 7 . . . . . . . Hover 7 | . . . . . 6 . . . . . 1 . Flight 7 | . . . . . 1 . . . 1 . 4 1 Utility 63 | 2 2 . 1 . 22 2 . 5 11 7 6 5 Device 32 | 1 . . . . 11 2 . 3 10 3 . 2 Storage 9 | 1 2 . 1 . 2 . . . . 1 1 1 Processor 12 | . . . . . 5 . . . 1 2 2 2 Hackware 4 | . . . . . . . . 1 . . 3 . Protection 6 | . . . . . 4 . . 1 . 1 . . Artifact . | . . . . . . . . . . . . . Weapon 25 | 2 2 4 2 5 4 . 1 1 . 2 . 2 Energy Gun 3 | . . 1 1 1 . . . . . . . . Energy Cannon 2 | . . . . . . . . 1 . 1 . . Ballistic Gun 8 | 2 1 2 1 1 . . . . . 1 . . Ballistic Cannon 4 | . . 1 . . 1 . . . . . . 2 Launcher 1 | . . . . . . . 1 . . . . . Special Weapon 3 | . 1 . . 1 1 . . . . . . . Impact Weapon 1 | . . . . 1 . . . . . . . . Slashing Weapon 2 | . . . . 1 1 . . . . . . . Piercing Weapon . | . . . . . . . . . . . . . Special Melee Weapon 1 | . . . . . 1 . . . . . . . Unidentified Prototypes 23 | . . . . 1 2 . . 2 4 6 5 3 Corrupted Parts 2 | . . . . . 2 . . . . . . . System Corruption 8 | . . . . . 8 . . . . . . . Parts Lost 80 | . 1 . 3 . 28 2 1 6 6 . 21 12 Power 11 | . 1 . 1 . 5 . . 1 . . 2 1 Propulsion 34 | . . . 1 . 15 2 . 1 2 . 10 3 Utility 32 | . . . . . 8 . 1 4 4 . 8 7 Weapon 3 | . . . 1 . . . . . . . 1 1 Highest Loss Streak 20 | . 1 . 2 . 7 1 1 3 3 . 20 11 To Critical Strikes 1 | . . . . . . . . 1 . . . . Average Backups 21 | 3 12 15 17 30 16 16 16 17 19 18 14 7 Power 1 | . 1 1 1 1 1 1 1 . . 1 . . Propulsion 2 | . 1 1 . 1 1 5 5 4 3 4 3 3 Utility 10 | . 7 8 9 14 7 6 6 7 10 8 6 1 Weapon 5 | 1 3 4 6 8 3 2 2 3 3 2 2 1 Tool/Special . | . . . . . . . . . . . . . Unused Backups 47 | . 1 3 2 17 10 . . 2 4 2 4 2 Power 3 | . . . . 2 . . . . . . 1 . Propulsion 5 | . . . . . 1 . . . 2 . . 2 Utility 23 | . 1 2 . 7 5 . . 2 2 2 2 . Weapon 11 | . . 1 2 7 1 . . . . . . . Tool/Special 5 | . . . . 1 3 . . . . . 1 . Average Slot Usage (%) 85 | . 96 100 93 83 77 89 82 81 85 88 77 55 Engine 8 | . 11 14 13 14 2 . . . . . . . Core 1 | . . . . . 4 11 11 6 1 . . . Reactor 1 | . . . . . . . . 2 7 9 5 5 Treads 5 | . 27 28 15 . . . . . . . . 10 Leg 7 | . . . . . 18 . . 25 31 30 22 . Wheel 11 | . . . 12 28 2 . . . . . . . Hover 1 | . . . . . 4 23 17 . . . . . Device 8 | . 14 14 7 . 12 17 17 20 15 20 14 2 Storage 10 | . 14 14 14 14 5 5 5 5 4 4 3 3 Processor 5 | . . . . . 11 17 17 10 11 15 13 22 Protection 1 | . . . . . 4 5 5 3 2 2 3 . Energy Gun 5 | . . 1 14 11 . . . . . . . . Ballistic Gun 8 | . 27 25 6 11 . . . . . . . . Slashing Weapon 2 | . . . . 2 5 5 5 5 4 4 2 . Peak Build Rating 158 | 8 9 10 16 28 102 101 87 110 139 149 158 151 Average Rating 47 | 7 8 9 12 18 67 92 81 100 118 133 130 117 On Entrance 60 | . 7 9 10 16 28 102 85 81 87 107 145 104 Avg Prop Armor Cover (%) 6 | . . . 5 3 8 5 . 2 5 . 14 17 Naked Turns . | . . . . . . . . . . . . . Heaviest Build 218 | 11 28 30 211 218 87 62 58 96 113 101 147 102 Greatest Support 227 | 40 40 40 40 26 95 71 33 138 190 183 183 227 Greatest Overweight (x) 13 | . . . 13 13 4 1 1 1 1 . 1 . Average Overweight (x) 3 | . . . 3 11 . . 1 . . . . . Largest Inventory Capacity 35 | 8 15 15 35 35 35 20 20 20 20 20 25 15 Average Capacity 24 | 7 14 15 23 35 20 20 20 20 20 20 16 12 Most Carried 35 | 8 15 15 31 35 33 20 20 20 20 20 21 11 Average Carried 22 | 4 12 14 19 32 19 19 19 18 19 19 15 7 Final Capacity 35 | 8 15 15 35 35 20 20 20 20 20 20 5 5 Final Carried 34 | 7 15 15 31 34 20 20 19 20 20 19 5 3 Scrap Suit Usage (%) 6 | . . . . . 11 . . 56 32 . . . Parts Cannibalized 26 | . . . . . 12 . . 8 6 . . . Class Distribution -------------------- 40% | Hauler-Mutant 26% | Mutant 21% | Scavenger-Mutant 5% | Derelict-Mutant Dominant Class ---------------- Mutant | -10/Materials Mutant | -10/Mines Mutant | -10/Subcaves Hauler-Mutant | -7/Scraptown Derelict-Mutant | -5/Factory Scavenger-Mutant | -5/Upper Caves Scavenger-Mutant | -5/Upper Caves Scavenger-Mutant | -4/Factory Scavenger-Mutant | -3/Research Mutant | -3/Testing Hacker-Mutant | -2/Research Mutant | -1/Access Resources | -11 -10 -10 -10 -7 -5 -5 -5 -4 -3 -3 -2 -1 ----------- Run | Yrd Mat Min Sub Scr Fac Upp Upp Fac Res Tes Res Acc Matter Collected 3438 | 308 157 155 314 30 1116 89 28 200 357 106 207 371 Remotely . | . . . . . . . . . . . . . Salvage Created 6461 | 242 303 45 249 . 2791 25 63 1135 812 351 147 298 Parts 302 | 31 11 10 20 . 108 2 5 45 43 20 5 2 Haulers Intercepted 5 | . 2 . . . 1 . . . . 1 . 1 Recyclers Shooed 6 | . 1 . . . 4 . . . . . 1 . Parts Field Recycled . | . . . . . . . . . . . . . Retrieved Matter . | . . . . . . . . . . . . . Parts Self-Destructed 26 | . . . 10 . . 11 5 . . . . . Prevented . | . . . . . . . . . . . . . Parts Restored . | . . . . . . . . . . . . . Kills | -11 -10 -10 -10 -7 -5 -5 -5 -4 -3 -3 -2 -1 ------- Run | Yrd Mat Min Sub Scr Fac Upp Upp Fac Res Tes Res Acc Combat Hostiles Destroyed 90 | . 7 3 10 . 32 . 5 14 8 5 2 4 Melee 56 | . . . . . 32 . . 10 8 5 1 . Guns 15 | . 7 3 5 . . . . . . . . . Cannons 9 | . . . 5 . . . . . . . . 4 AOE 9 | . . . . . . . 5 4 . . . . Classes Destroyed 16 | 3 3 1 2 . 5 1 . . . . 1 . Worker 14 | 2 . . . . 10 . . . 1 1 . . Builder 4 | . . 1 . . . . . . 3 . . . Tunneler 8 | 7 . . . . . . . 1 . . . . Hauler 5 | . 2 . . . 1 . . . . 1 . 1 Recycler 9 | 1 . . . . 4 . . 2 2 . . . Minesweeper 1 | . . . . . . 1 . . . . . . Mechanic 2 | . . . . . 1 . . 1 . . . . Operator 2 | . . . . . 1 . . . 1 . . . Watcher 1 | . . . . . 1 . . . . . . . Swarmer 30 | . 3 3 5 . 4 . 5 4 3 3 . . Grunt 28 | . 4 . 1 . 16 . . 4 . . 1 2 Duelist 1 | . . . . . . . . . . . 1 . Sentry 6 | . . . 1 . 2 . . 2 1 . . . Hunter 9 | . . . . . 3 . . 2 2 . . 2 Programmer 13 | . . . . . 7 . . 2 2 2 . . Subdweller 3 | . . . 3 . . . . . . . . . Best Kill Streak 7 | 4 3 3 4 . 7 1 5 4 4 3 1 2 Combat Bots Only 5 | . 3 3 4 . 5 . 5 4 3 3 1 2 Max Kills in Single Turn 5 | 1 1 1 1 . 2 1 5 4 1 1 1 1 Gunslinging . | . . . . . . . . . . . . . Exploded 5 | . . . . . . . 5 4 . . . . Melee 2 | . . . . . 2 . . 1 1 1 1 . Uniques/NPCs Destroyed . | . . . . . . . . . . . . . Combat | -11 -10 -10 -10 -7 -5 -5 -5 -4 -3 -3 -2 -1 -------- Run | Yrd Mat Min Sub Scr Fac Upp Upp Fac Res Tes Res Acc Hostile Shots Fired 1477 | . 59 9 68 . 359 5 5 178 223 29 300 242 Missed 470 | . 13 . 21 . 100 . . 48 89 7 104 88 Hits 1007 | . 46 9 47 . 259 5 5 130 134 22 196 154 Melee 3 | . . . . . . . . . . . 3 . Projectile 1004 | . 46 9 47 . 259 5 5 130 134 22 193 154 AOE 2 | . . . . . 2 . . . . . . . Critical Strikes 51 | . 1 . . . 15 1 . 9 6 3 9 7 Part Disruptions 2 | . . . . . 2 . . . . . . . Damage Taken 17949 | . 476 67 424 . 4303 180 73 1865 2002 388 4626 3545 Core 3248 | . 74 13 95 . 844 10 18 124 172 18 1024 856 Absorbed by Shields 1833 | . . . . . 582 . . 461 494 140 156 . Reduced by Siege Mode 129 | . . . . . . . . . . . . 129 Redirected to Shielding 18 | . . . . . 9 3 6 . . . . . Ignored by Resistances 674 | . . . . . 99 . . 264 311 . . . Regen/Repaired (Parts) 349 | . 120 . . . 102 . . 75 52 . . . Core Remaining (%) 55 | 100 . . . 27 . . 12 89 . 85 29 46 Volleys Fired 164 | 19 60 7 24 1 5 . 1 1 10 2 6 28 Largest 2 | 2 2 2 2 1 1 . 1 1 1 1 1 2 Hottest 163 | 40 100 100 95 5 47 . 36 36 105 105 36 163 Shots Fired 296 | 38 117 13 48 1 5 . 1 1 10 2 6 54 Gun 198 | 38 114 12 34 . . . . . . . . . Cannon 85 | . . . 14 . 5 . . . 10 2 . 54 Launcher 8 | . . . . . . . 1 1 . . 6 . Special 5 | . 3 1 . 1 . . . . . . . . Kinetic 229 | 38 114 12 24 . 5 . . . . . . 36 Thermal 58 | . 3 1 24 . . . . . 10 2 . 18 Explosive 8 | . . . . . . . 1 1 . . 6 . Electromagnetic . | . . . . . . . . . . . . . Robot Hit Streak 13 | 9 10 4 5 6 . . . 1 . . 2 13 Robot Miss Streak 7 | 2 7 2 4 . 1 . . . . . 1 3 Penetration Max . | . . . . . . . . . . . . . Secondary Targets 2 | . 1 1 . . . . . . . . . . Max Gunslinging Chain 1 | . 1 1 . . . . . . . . . . Shots Hit Robots 471 | 28 69 6 28 1 150 1 . 56 59 23 13 37 Core Hits 210 | 18 27 4 13 . 59 1 7 22 18 7 20 14 Critical Kills 1 | 1 . . . . . . . . . . . . Critical Parts Destroyed 2 | . 1 . 1 . . . . . . . . . Critical Strikes 19 | 1 1 . 1 . 2 . . . 6 4 . 4 Destroy 3 | 1 1 . 1 . . . . . . . . . Blast 4 | . . . . . . . . . . . . 4 Melee Attacks 367 | . . . . . 182 1 . 59 77 36 12 . Impact . | . . . . . . . . . . . . . Slashing 350 | . . . . . 176 1 . 58 71 34 10 . Piercing . | . . . . . . . . . . . . . Sneak Attacks 52 | . . . . . 25 1 . 6 13 4 3 . Combat Hostiles 2 | . . . . . . . . 1 . . 1 . Follow-up Attacks 10 | . . . . . 8 . . 2 . . . . Damage Inflicted 17956 | 240 604 69 525 . 7108 77 264 3010 2614 963 1004 1478 Guns 1224 | 240 600 52 332 . . . . . . . . . Cannons 1638 | . . . 193 . . . . . . . . 1445 Explosions 1464 | . . . . . . . 264 495 . . 672 33 Melee 13608 | . . . . . 7108 77 . 2515 2613 963 332 . Ramming 22 | . 4 17 . . . . . . 1 . . . Kinetic 2279 | 240 600 52 340 . . . . . . . . 1047 Thermal 823 | . . . 185 . . . . 207 . . . 431 Explosive 1224 | . . . . . . . 264 288 . . 672 . Electromagnetic . | . . . . . . . . . . . . . Impact . | . . . . . . . . . . . . . Slashing 13608 | . . . . . 7108 77 . 2515 2613 963 332 . Piercing . | . . . . . . . . . . . . . Highest Corruption 15 | . . . . . 15 15 15 5 . 3 6 4 Average Corruption 9 | . . . . . 8 15 15 4 . 2 5 3 Corruption Purged 3 | . . . . . 3 . . . . . . . Corruption Blocked 13 | . . . . . 4 . . . 9 . . . Effects 87 | . . . . . 36 33 3 8 . 1 4 2 Message Errors 26 | . . . . . 10 9 . 3 . . 3 1 Matter Fused 22 | . . . . . 10 6 2 3 . . . 1 Heat Flow Errors 10 | . . . . . 3 7 . . . . . . Energy Discharges 6 | . . . . . 2 2 . 1 . . 1 . Parts Fused 2 | . . . . . . 1 . . . 1 . . Data Loss (minor) 13 | . . . . . 7 6 . . . . . . Data Loss (major) 5 | . . . . . 2 2 1 . . . . . Alerts 2 | . . . . . 1 . . 1 . . . . Misdirections 1 | . . . . . 1 . . . . . . . Overload Shots . | . . . . . . . . . . . . . Overflow Damage 948 | . . . . . 322 . . 312 209 84 5 16 Projectiles 16 | . . . . . . . . . . . . 16 Explosions 153 | . . . . . . . . 148 . . 5 . Melee 779 | . . . . . 322 . . 164 209 84 . . Knockbacks 14 | . . . 5 . . . . . . . . 9 Impact . | . . . . . . . . . . . . . Kinetic 14 | . . . 5 . . . . . . . . 9 Secondary . | . . . . . . . . . . . . . Self-Inflicted Damage 76 | . . . . . . . . . . . 25 51 Shots 2 | . . . . . . . . . . . 1 1 Rammed 3 | . 1 2 . . . . . . . . . . Targets Rammed 5 | . 1 3 . . . . . . 1 . . . Kicked 1 | . . . . . . . . . 1 . . . Crushed 1 | . . 1 . . . . . . . . . . Highest Temperature 408 | . 60 20 13 . 266 300 . 5 360 368 4 408 Average Temperature 112 | . 17 10 6 . 70 107 . 3 175 146 2 170 Received Heat Transfer 2344 | . 132 . 162 . 1046 27 . 215 109 . 419 234 Effects 12 | . . . . . . . . . 3 . . 9 Shutdowns 3 | . . . . . . . . . . . . 3 Energy Bleed 1 | . . . . . . . . . . . . 1 Interference 8 | . . . . . . . . . 3 . . 5 Siege Activations 2 | . . . . . . . . . . . . 2 Total Turns 35 | . . . . . . . . . . . . 35 Longest Duration 29 | . . . . . . . . . . . . 29 Martial Activations . | . . . . . . . . . . . . . Shielding Activations . | . . . . . . . . . . . . . Robots Disrupted 4 | . . . . . 2 . . 1 1 . . . Combat Hostiles 4 | . . . . . 2 . . 1 1 . . . Robots Corrupted . | . . . . . . . . . . . . . Combat Hostiles . | . . . . . . . . . . . . . Parts Fried . | . . . . . . . . . . . . . Impact Corruptions . | . . . . . . . . . . . . . Robots Melted . | . . . . . . . . . . . . . Combat Hostiles . | . . . . . . . . . . . . . Parts Melted . | . . . . . . . . . . . . . Heat Transferred 794 | . . . 237 . . . . 100 . . . 457 Parts Sabotaged . | . . . . . . . . . . . . . Parts Stolen . | . . . . . . . . . . . . . Parts Stripped . | . . . . . . . . . . . . . Power Chain Reactions . | . . . . . . . . . . . . . Alert | -11 -10 -10 -10 -7 -5 -5 -5 -4 -3 -3 -2 -1 ------- Run | Yrd Mat Min Sub Scr Fac Upp Upp Fac Res Tes Res Acc Maximum Alert Level 2 | . . . . . 2 . . . . . 1 1 Low Security (%) 85 | 100 100 100 . . 52 . . 100 100 100 77 92 Level 1 14 | . . . . . 46 . . . . . 22 7 Level 2 . | . . . . . . . . . . . . . Level 3 . | . . . . . . . . . . . . . Level 4 . | . . . . . . . . . . . . . Level 5 . | . . . . . . . . . . . . . High Security . | . . . . . . . . . . . . . Max Security . | . . . . . . . . . . . . . Peak Influence 404 | 15 68 62 . . 404 . . 183 135 128 331 324 Initial 185 | . 3 . . . . . . 44 80 15 58 185 Average 81 | 2 17 5 . . 179 . . 37 58 24 133 158 Influence Increases 4174 | 50 236 76 260 . 1127 5 110 510 362 247 680 511 Destroy 0b10 Robot/C 1920 | . 140 60 140 . 680 . 100 280 160 100 180 80 Destroy 0b10 Robot/NC 240 | 50 10 5 . . 95 5 . 20 35 10 5 5 Destroy Leader 364 | . 34 10 . . 154 . 10 60 40 22 22 12 Allied During Kill 59 | . . . . . 9 . . . . . 50 . Trap Triggered on 0b10 10 | . . . . . 10 . . . . . . . Successful Hack 146 | . 4 . . . 52 . . 36 . 39 15 . Disable Machine 180 | . . . . . 45 . . 15 30 45 . 45 Destroy Structure 280 | . 3 1 . . 22 . . 24 22 16 93 99 Partial Spotted 60 | . 15 . . . 15 . . . 15 . 15 . Lose Combat Pursuer 915 | . 30 . 120 . 45 . . 75 60 15 300 270 Influence Decreases 3820 | 45 241 76 260 . 725 407 40 427 488 170 474 467 Entered New Map 434 | . 2 . . . . 150 . 26 73 12 46 125 Time Decay 2516 | 45 229 76 230 . 405 247 40 331 335 158 198 222 Lost Part 770 | . 10 . 30 . 280 10 . 50 60 . 210 120 Lost Ally 100 | . . . . . 40 . . 20 20 . 20 . Squads Dispatched 36 | . . . . . 11 . . 6 6 2 5 6 Investigation 9 | . . . . . 2 . . 2 2 . 1 2 Extermination 10 | . . . . . 3 . . 1 2 1 1 2 Reinforcement 11 | . . . . . 3 . . . 2 1 3 2 Assault . | . . . . . . . . . . . . . Garrison 6 | . . . . . 3 . . 3 . . . . Intercept . | . . . . . . . . . . . . . Searches Triggered . | . . . . . . . . . . . . . Construction Impeded 2 | . . . . . . . . . . . 1 1 Haulers Reinforced 2 | . . . . . . . . . . . 1 1 Active Scanning Responses . | . . . . . . . . . . . . . Cargo Convoy Interrupts 1 | . . . . . . . . . 1 . . . Stealth | -11 -10 -10 -10 -7 -5 -5 -5 -4 -3 -3 -2 -1 --------- Run | Yrd Mat Min Sub Scr Fac Upp Upp Fac Res Tes Res Acc Distress Signals 16 | . 4 . . . 5 . . 1 3 . 2 1 Communications Jammed 24 | . . . . . . . . . . 1 23 . Distress Signals 23 | . . . . . . . . . . . 23 . Times Spotted 235 | . 17 3 11 . 59 2 5 28 31 7 33 39 Peak Tracking Total 22 | . 4 3 5 . 7 1 5 5 8 3 17 22 Tactical Retreats 22 | . 2 . 3 . 1 . . 5 1 1 5 4 Traps | -11 -10 -10 -10 -7 -5 -5 -5 -4 -3 -3 -2 -1 ------- Run | Yrd Mat Min Sub Scr Fac Upp Upp Fac Res Tes Res Acc Traps Triggered 6 | . . . . . 2 1 . 1 . . 1 1 Indirectly . | . . . . . . . . . . . . . Trap Hack Attempts . | . . . . . . . . . . . . . Triggered . | . . . . . . . . . . . . . Disarmed . | . . . . . . . . . . . . . Reprogrammed . | . . . . . . . . . . . . . Reused 1 | . . . . . 1 . . . . . . . Traps Extracted . | . . . . . . . . . . . . . Installed 1 | . . . . . 1 . . . . . . . Triggered 1 | . . . . . 1 . . . . . . . Most Traps Carried 3 | . . . 1 1 1 3 3 3 3 3 3 . Machines | -11 -10 -10 -10 -7 -5 -5 -5 -4 -3 -3 -2 -1 ---------- Run | Yrd Mat Min Sub Scr Fac Upp Upp Fac Res Tes Res Acc Machines Disabled 12 | . . . . . 3 . . 1 2 3 . 3 Max in Single Turn 1 | . . . . . 1 . . 1 1 1 . 1 Garrison Access 2 | . . . . . . . . 1 1 . . . Energy Cycler 1 | . . . . . . . . . . . . 1 Machines Repaired . | . . . . . . . . . . . . . Machines Dismantled . | . . . . . . . . . . . . . Machines Sabotaged . | . . . . . . . . . . . . . Overloaded Fab Kills . | . . . . . . . . . . . . . Hacking | -11 -10 -10 -10 -7 -5 -5 -5 -4 -3 -3 -2 -1 --------- Run | Yrd Mat Min Sub Scr Fac Upp Upp Fac Res Tes Res Acc Machines Accessed 37 | . 5 . 1 2 8 . . 6 4 4 3 4 Terminals 15 | . 4 . . . 3 . . 1 2 1 2 2 Fabricators 3 | . . . . . 3 . . . . . . . Repair Stations 2 | . 1 . . . . . . . . 1 . . Recycling Units 3 | . . . . . . . . 2 . . . 1 Scanalyzers 5 | . . . . . 1 . . 1 1 1 1 . Garrison Access 6 | . . . . . 1 . . 2 1 1 . 1 Total Hacks 77 | . 13 . 3 3 18 . . 11 9 5 6 9 Successful 29 | . 5 . 3 3 6 . . 6 3 2 1 . Failed 48 | . 8 . . . 12 . . 5 6 3 5 9 Catastrophic 11 | . . . . . 4 . . 1 1 . 1 4 Database Lockouts . | . . . . . . . . . . . . . Manual 22 | . 7 . . . 2 . . 3 3 . 4 3 Terminals 33 | . 10 . . . 7 . . 2 5 1 4 4 Fabricators 7 | . . . . . 7 . . . . . . . Repair Stations 4 | . 3 . . . . . . . . 1 . . Recycling Units 6 | . . . . . . . . 3 . . . 3 Scanalyzers 11 | . . . . . 2 . . 3 2 2 2 . Garrison Access 10 | . . . . . 2 . . 3 2 1 . 2 Terminal Hacks 13 | . 2 . 3 3 1 . . 1 2 1 . . Record 4 | . . . 3 1 . . . . . . . . Part Schematic 2 | . . . . . . . . 1 . 1 . . Prototype ID Bank 1 | . 1 . . . . . . . . . . . Open Door 1 | . . . . 1 . . . . . . . . Branch Access Points 2 | . . . . . 1 . . . 1 . . . Locate Traps 1 | . 1 . . . . . . . . . . . Maintenance Status 1 | . . . . . . . . . 1 . . . Proto ID Catalog 1 | . . . . 1 . . . . . . . . Fabricator Hacks 3 | . . . . . 3 . . . . . . . Network Status 1 | . . . . . 1 . . . . . . . Build 2 | . . . . . 2 . . . . . . . Repair Station Hacks 2 | . 2 . . . . . . . . . . . Scan Component 1 | . 1 . . . . . . . . . . . Repair 1 | . 1 . . . . . . . . . . . Recycling Unit Hacks . | . . . . . . . . . . . . . Scanalyzer 5 | . . . . . 1 . . 2 . 1 1 . Insert Component 1 | . . . . . 1 . . . . . . . Retrieve Study 4 | . . . . . . . . 2 . 1 1 . Garrison Access Hacks 2 | . . . . . . . . 1 1 . . . Seal Access 2 | . . . . . . . . 1 1 . . . Unauthorized Hacks 4 | . 1 . . . 1 . . 2 . . . . Terminals 1 | . 1 . . . . . . . . . . . Skim 1 | . 1 . . . . . . . . . . . Fabricators 1 | . . . . . 1 . . . . . . . Haulers 1 | . . . . . 1 . . . . . . . Repair Stations . | . . . . . . . . . . . . . Recycling Units 2 | . . . . . . . . 2 . . . . Fedlink 2 | . . . . . . . . 2 . . . . Scanalyzers . | . . . . . . . . . . . . . Garrison Access . | . . . . . . . . . . . . . Data Cores Recovered . | . . . . . . . . . . . . . Used . | . . . . . . . . . . . . . Hacking Detections 28 | . 4 . . . 6 . . 3 4 4 3 4 Full Trace Events 5 | . . . . . 1 . . . 1 . 1 2 Feedback Events . | . . . . . . . . . . . . . Feedback Blocked . | . . . . . . . . . . . . . Robot Schematics Acquired . | . . . . . . . . . . . . . Robots Built . | . . . . . . . . . . . . . Authchips . | . . . . . . . . . . . . . Time . | . . . . . . . . . . . . . Total Robot Build Rating . | . . . . . . . . . . . . . Part Schematics Acquired 2 | . . . . . . . . 1 . 1 . . Parts Built 2 | . . . . . 2 . . . . . . . Authchips . | . . . . . . . . . . . . . Time 232 | . . . . . 232 . . . . . . . Total Part Build Rating 16 | . . . . . 16 . . . . . . . Part Studies Acquired 4 | . . . . . . . . 2 . 1 1 . Parts Repaired 1 | . 1 . . . . . . . . . . . Time 26 | . 26 . . . . . . . . . . . Parts Recycled . | . . . . . . . . . . . . . Recycled Matter . | . . . . . . . . . . . . . Retrieved Matter . | . . . . . . . . . . . . . Retrieved Components . | . . . . . . . . . . . . . Parts Scanalyzed 1 | . . . . . 1 . . . . . . . Part Schematics Acquired . | . . . . . . . . . . . . . Parts Damaged 1 | . . . . . 1 . . . . . . . Bothacking | -11 -10 -10 -10 -7 -5 -5 -5 -4 -3 -3 -2 -1 ------------ Run | Yrd Mat Min Sub Scr Fac Upp Upp Fac Res Tes Res Acc Used RIF Installer . | . . . . . . . . . . . . . Robots Hacked 2 | . . . . 1 . . . . . . 1 . Non-combat . | . . . . . . . . . . . . . Combat 2 | . . . . 1 . . . . . . 1 . Robot Hacks Applied 2 | . . . . 1 . . . . . . 1 . parse_system 2 | . . . . 1 . . . . . . 1 . Relay Couplers Released . | . . . . . . . . . . . . . Fabnet Peak Effective % . | . . . . . . . . . . . . . Robots Rewired 5 | . . . . . 2 . . 1 1 1 . . Allies Hacked . | . . . . . . . . . . . . . Hacks Repelled . | . . . . . . . . . . . . . Allies | -11 -10 -10 -10 -7 -5 -5 -5 -4 -3 -3 -2 -1 -------- Run | Yrd Mat Min Sub Scr Fac Upp Upp Fac Res Tes Res Acc Total Allies 5 | . . . . . 2 . . 1 1 1 . . Largest Group 1 | . . . . . 1 . . 1 1 1 1 . Highest-Rated Group 155 | . . . . . 46 . . 49 64 155 155 . Highest-Rated Ally 155 | . . . . . 46 . . 49 64 155 155 . Initial UFD Resources 64 | . . . . . 38 38 38 40 56 56 60 64 Total Orders 2 | . . . . . . . . . . . 2 . STAY 1 | . . . . . . . . . . . 1 . FOLLOW 1 | . . . . . . . . . . . 1 . Ally Attacks 42 | . . . . . 19 . . . 2 . 21 . Total Damage 1835 | . . . . . 438 . . . 99 . 1298 . Kills 11 | . . . . . 3 . . . . . 8 . Allies Corrupted 2 | . . . . . . . . . 1 . 1 . Allies Melted . | . . . . . . . . . . . . . Intel | -11 -10 -10 -10 -7 -5 -5 -5 -4 -3 -3 -2 -1 ------- Run | Yrd Mat Min Sub Scr Fac Upp Upp Fac Res Tes Res Acc Active Infowar (turns) 6576 | 143 892 1079 871 . 554 797 94 761 179 654 306 246 Sensors 1137 | . . . . . . . . . . 585 306 246 IFF 798 | . . . . . . 797 1 . . . . . Structural 367 | . . . . . . . . . 32 293 42 . Seismic 4540 | 143 892 1079 871 . 554 . 93 761 147 . . . Jamming 956 | . . . . . . . . . . 650 306 . Robot Analysis Total . | . . . . . . . . . . . . . Derelict Logs Recovered 7 | . . 1 1 4 . 1 . . . . . . Drone Launches . | . . . . . . . . . . . . . Drone Recoveries . | . . . . . . . . . . . . . Exploration | -11 -10 -10 -10 -7 -5 -5 -5 -4 -3 -3 -2 -1 ------------- Run | Yrd Mat Min Sub Scr Fac Upp Upp Fac Res Tes Res Acc Turns Passed 15775 | 235 892 1079 1540 5781 2047 797 97 983 797 654 400 473 Spaces Moved 8370 | 105 397 648 708 2083 1229 760 83 588 482 454 360 473 Core 159 | 4 . . . . . . . . . . 102 53 Treads 1732 | 101 397 648 423 . . . . . . . 3 160 Legs 2512 | . . . . . 789 . . 588 482 454 199 . Wheels 2534 | . . . 285 2083 166 . . . . . . . Hover 1117 | . . . . . 274 760 83 . . . . . Flight 316 | . . . . . . . . . . . 56 260 Fastest Speed 20 | 50 160 160 115 210 44 44 112 121 108 112 28 20 Average Speed 160 | 155 160 160 192 274 106 94 112 128 112 113 83 66 Slowest Speed 315 | 160 160 160 295 295 315 112 112 186 186 114 180 145 Overloaded Moves 25 | . . . . . . . . . . . . 25 Propulsion Burnouts . | . . . . . . . . . . . . . Robots Hopped 12 | . . . . . . . . . . . 2 10 Potential Cave-ins . | . . . . . . . . . . . . . Cave-ins Triggered . | . . . . . . . . . . . . . Exploration Rate (%) 41 | 7 67 99 29 94 28 86 15 17 14 46 18 15 Regions Visited 12 Branch Regions 6 Pre-discovered Areas 3 | . . . 1 . . 1 . 1 . . . . Known Exits Taken 4 | . . . . . 1 . . . 1 1 1 . Unknown Exits Taken 8 | 1 1 1 1 1 . 1 1 1 . . . . Scrap Searched 15 | . . 2 7 5 . 1 . . . . . . Spaces Dug 32 | . 2 1 . . 9 . . 2 9 9 . . Terrain Destroyed 116 | . 3 1 . . 9 . 12 12 14 9 25 31 Melee 22 | . . . . . 8 . . 2 5 7 . . Projectile 25 | . 3 1 . . 1 . . . 9 2 . 9 AOE 69 | . . . . . . . 12 10 . . 25 22 Terrain Rammed . | . . . . . . . . . . . . . Walls Destroyed . | . . . . . . . . . . . . . Machines Disabled . | . . . . . . . . . . . . . Actions | -11 -10 -10 -10 -7 -5 -5 -5 -4 -3 -3 -2 -1 --------- Run | Yrd Mat Min Sub Scr Fac Upp Upp Fac Res Tes Res Acc Total 10006 | 143 555 677 848 2162 1718 840 86 738 671 559 440 569 Wait 530 | 5 75 1 61 5 166 71 . 34 22 31 22 37 Move 8335 | 104 396 647 707 2082 1228 759 82 587 481 453 355 454 Hop 10 | . . . . . . . . . . . 2 8 Pick Up 156 | 7 10 4 38 30 24 . . 14 16 3 5 5 Fast Attach 93 | 7 1 . 1 3 32 2 . 6 9 13 10 9 Attach 83 | . 1 . 4 2 29 . 2 12 8 3 10 12 Detach 40 | . . . . 3 11 2 1 4 5 2 5 7 Swap 58 | . 6 8 1 2 13 1 . 5 13 2 5 2 Drop 175 | 1 5 7 12 34 37 3 . 18 29 14 8 7 Fire 164 | 19 60 7 24 1 5 . 1 1 10 2 6 28 Melee 355 | . . . . . 172 1 . 57 77 36 12 . Ram . | . . . . . . . . . . . . . Kick 1 | . . . . . . . . . 1 . . . Crush 4 | . 1 3 . . . . . . . . . . Escape Stasis . | . . . . . . . . . . . . . Rewire . | . . . . . . . . . . . . . Trap 1 | . . . . . 1 . . . . . . . Miscellaneous 1 | . . . . . . 1 . . . . . . Route ------- -11/Scrapyard -10/Materials -10/Mines (discovered 4 exits: [*Mat x2] / [*Exi] / *Sub) -10/Subcaves (discovered 3 exits: [*Mat x2] / *Scr) -7/Scraptown (discovered 2 exits: *Fac x2) -5/Factory (discovered 2 exits: *Upp x2) -5/Upper Caves -5/Upper Caves -4/Factory (discovered 2 exits: *Res / [*Upp]) -3/Research (discovered 2 exits: *Tes x2) -3/Testing -2/Research -1/Access To Epsilon Eridani History --------- Turn | Location | Event 5 | -11/Scrapyard | Discovered new exit (range 14) 236 | -11/Scrapyard | Entered Materials 300 | -10/Materials | Build established: Mutant 1049 | -10/Materials | Discovered new exit (range 7) 1101 | -10/Materials | Repaired Lgt. Treads 1128 | -10/Materials | Entered Mines 1447 | -10/Mines | Learned Materials emergency access door positions 1503 | -10/Mines | Discovered new exit (range 9) 1907 | -10/Mines | A weapon hastily lodged in a ceiling crevice suddenly fell to the ground 1938 | -10/Mines | Deemed a non-threat by the Exiles lab entrance 1940 | -10/Mines | Discovered new exit (range 5) 1974 | -10/Mines | Discovered new exit (range 10) 2055 | -10/Mines | Discovered new exit (range 10) 2207 | -10/Mines | Entered Subcaves 2208 | -10/Subcaves | Approached by a straggling Scientist 2280 | -10/Subcaves | Disturbed a concealed Subdweller 2368 | -10/Subcaves | Discovered new exit (range 15) 2587 | -10/Subcaves | Learned location of Mines (-9) 2791 | -10/Subcaves | Discovered new exit (range 10) 2975 | -10/Subcaves | Visited Clippyterm 2980 | -10/Subcaves | Learned Research machine intel 3000 | -10/Subcaves | Core integrity fell below 50% 3377 | -10/Subcaves | Build established: Hauler-Mutant 3747 | -10/Subcaves | Entered Scraptown 4495 | -7/Scraptown | Heard Great Nut preacher, LISTEN AND RECITE! 4816 | -7/Scraptown | Scanned Subdweller tech in exchange for log data 4825 | -7/Scraptown | Learned Factory security intel 4828 | -7/Scraptown | Learned Research stockpile data 4886 | -7/Scraptown | Discovered new exit (range 3) 5093 | -7/Scraptown | Visited Cave Peace 5193 | -7/Scraptown | Visited Cyclists 5258 | -7/Scraptown | Visited Comm Corps 5417 | -7/Scraptown | Visited Shadow of the Wyrm 5476 | -7/Scraptown | Visited UFD Registry 5476 | -7/Scraptown | Registered with UFD as "Beamripper" 5515 | -7/Scraptown | Visited SPCMW 5588 | -7/Scraptown | Visited Junk Repository 5647 | -7/Scraptown | Visited Red Mages 5833 | -7/Scraptown | Entered Cyclist Reading Room 6119 | -7/Scraptown | Visited LU-1G1's Boring Crew 6285 | -7/Scraptown | Visited Sword Containment 6379 | -7/Scraptown | Visited DA-N13 Charitable Foundation 6406 | -7/Scraptown | Found DCF Scrap (28 items) 6465 | -7/Scraptown | Visited Chapter 10 6618 | -7/Scraptown | Visited Modified Component R&D 6783 | -7/Scraptown | Visited Scrap Suit Storage 6833 | -7/Scraptown | Visited Science Guys 7255 | -7/Scraptown | Visited Observation Area 7376 | -7/Scraptown | Visited Derelict Rescue Squad 7403 | -7/Scraptown | Found DRS Beacon 7920 | -7/Scraptown | Discovered new exit (range 5) 8048 | -7/Scraptown | Found Scrap Suit 8512 | -7/Scraptown | Found Prototype Slashing Weapon 8512 | -7/Scraptown | Identified Companion Sword 9263 | -7/Scraptown | Found Scrap Suit 9412 | -7/Scraptown | Met Optimus 9412 | -7/Scraptown | Accepted into 0bPrime 9528 | -7/Scraptown | Entered Factory 9528 | -5/Factory | Evolved 10 slots: Power x1, Propulsion x3, Utility x6 9529 | -5/Factory | Identified exit to Upper Caves 9820 | -5/Factory | Build established: Derelict-Mutant 10269 | -5/Factory | Garrison activated, responded to threat 10587 | -5/Factory | Lost 4 parts (3n1u) 10807 | -5/Factory | Lost 4 parts (2p2n) 10817 | -5/Factory | System corruption reached 10% 10917 | -5/Factory | Core integrity fell below 50% 11001 | -5/Factory | Lost 7 parts (1p3n3u) 11157 | -5/Factory | Fabricated Adv. Gravity Neutralizer? 11208 | -5/Factory | Lost 4 parts (3n1u) 11304 | -5/Factory | Core integrity fell below 20% 11497 | -5/Factory | Fabricated Hvy. Shield Leg (x1) 11575 | -5/Factory | Entered Upper Caves 11615 | -5/Upper Caves | Build established: Scavenger-Gladiator 11685 | -5/Upper Caves | Activated DRS Beacon 11835 | -5/Upper Caves | Learned location of Warlord (-4) 11876 | -5/Upper Caves | Attracted the attention of an 0b10 checkpoint 11978 | -5/Upper Caves | Build established: Scavenger-Mutant 12123 | -5/Upper Caves | Discovered new exit (range 5) 12372 | -5/Upper Caves | Entered another Upper Caves area 12398 | -5/Upper Caves | Discovered new exit (range 9) 12469 | -5/Upper Caves | Entered Factory 12469 | -4/Factory | Evolved 2 slots: Propulsion x1, Utility x1 12595 | -4/Factory | Discovered new exit (range 14) 12613 | -4/Factory | Loaded intel: 8 recycling unit locations 12796 | -4/Factory | Learned location of Protoforge (-2) 12945 | -4/Factory | Garrison activated, responded to threat 13029 | -4/Factory | Spotted B-86 Titan 13261 | -4/Factory | Lost 3 parts (3u) 13426 | -4/Factory | Discovered new exit (range 15) 13452 | -4/Factory | Entered Research 13452 | -3/Research | Evolved 2 slots: Propulsion x1, Utility x1 13454 | -3/Research | Loaded intel: 128 machine locations 13831 | -3/Research | Identified exit to Testing 14028 | -3/Research | Cargo convoy interrupted 14139 | -3/Research | Found Prototype Device 14139 | -3/Research | Identified Exp. Shield Generator 14162 | -3/Research | Lost 9 allies 14249 | -3/Research | Entered Testing 14279 | -3/Testing | Lost 3 parts (1n2u) 14542 | -3/Testing | Found Prototype Protection 14542 | -3/Testing | Identified Centrium Heavy Armor Plating 14723 | -3/Testing | Found Prototype Processor 14723 | -3/Testing | Identified Spectral Analyzer 14748 | -3/Testing | Found Prototype Device 14748 | -3/Testing | Identified AEGIS Remote Shield 14812 | -3/Testing | Found Prototype Hackware 14833 | -3/Testing | Build established: Mutant 14843 | -3/Testing | Discovered new exit (range 10) 14850 | -3/Testing | Rewired PH-E1BF75MWBB 14862 | -3/Testing | Identified exit to Research 14903 | -3/Testing | Entered Research 14903 | -2/Research | Accompanied by 1 ally 14903 | -2/Research | Evolved 2 slots: Utility x2 14948 | -2/Research | Identified System Mapper 15161 | -2/Research | Spotted B-90 Cyclops 15247 | -2/Research | Found Prototype Processor 15247 | -2/Research | Identified Exp. Terrain Scan Processor 15252 | -2/Research | Core integrity fell below 50% 15254 | -2/Research | Spotted B-90 Cyclops 15272 | -2/Research | Found Prototype Processor 15272 | -2/Research | Identified Exp. Core Analyzer 15289 | -2/Research | Discovered new exit (range 8) 15303 | -2/Research | Lost 20 parts (2p9n8u1w) 15303 | -2/Research | Identified exit to Access 15303 | -2/Research | Entered Access 15303 | -1/Access | Evolved 2 slots: Power x1, Propulsion x1 15718 | -1/Access | Spotted B-99 Colossus 15739 | -1/Access | Energy Cycler disabled 15759 | -1/Access | Core integrity fell below 50% 15774 | -1/Access | Discovered new exit (range 6) 15775 | -1/Access | Identified exit to Surface 15776 | *** | Escaped! Last Messages --------------- 15747_ P-80 Master resets U-05 Engineer, system corruption cleaned. 15749_ Triggered Blade Trap. 15749_ Massive razor-sharp blades shoot up from within the floor. 15749_ Exp. Gyrokinetic Inverter severed. 15749_ Adv. Signal Interpreter severed. 15749_ Acquired Exp. Gyrokinetic Inverter. 15750_ System corrupted: Matter fused (-7). 15753_ C-30 ARC bursts open, deploying its payload. 15753_ S-43 Plague unfolds itself. 15755_ K-01 Serf collects debris. 15755_ Slug penetrates Wall. 15755_ P-80 Master resets G-73 Enforcer, system corruption cleaned. 15756_ Acquired 93 matter. 15758_ Penetrated by Slug. 15758_ Adv. Salvage Targeting Computer destroyed. 15758_ Critical hit (Blast). 15769_ Connecting with Terminal... 15774_ The Access Shell folds into the floor. 15774_ EXIT=FOUND 15775_ EXIT=IDENTIFIED: SURFACE Map ----- +----------------------------------------------------+ | ?????????????????????????????????????????????????? | | ?????????????????????????????????????????????????? | | ?????????????????????????????????????????????????? | | ?????????????????????????????????????????????????? | | ?????????????????????????????????????????????????? | | ?????????????????????????????????????????????????? | | ?????????????????????????????????????????????????? | | ?????????????????????????????????????????????????? | | ?????????????????????????????????????????????????? | | ?????????????????????????????????????????????????? | | ?????????????????????????????????????????????????? | | ?????????????????????????????????????????????????? | | ?????????????????????????????????????????????????? | | ?????????????????????????????????????? #????????? | | ?????????????????????????????????????? #????????? | | ?????????????????????????????????????? +????????? | | ?????????????????????????????????????? #????????? | | ?????????????????????????????????????? #????????? | | ?????????????????????????????????????# #????????? | | ?????????????????????????????###?????# #????????? | | ????????????????????########## ####### #????????? | | ????????????????????" #????????? | | ????????????????????" #????????? | | ????????????????????" #????????? | | ????????????????????" #????????? | | ????????????????????" "@ #????????? | | ????????????????????" "" #????????? | | ????????????????????" #????????? | | ????????????????????" #????????? | | ????????????????????" """ """ #????????? | | ????????????????????" """T""" #????????? | | ????????????????????########## ####### #????????? | | ?????????????????????????????###?????# #????????? | | ?????????????????????????????????????# ########## | | ?????????????????????????????????????# | | ?????????????????????????????????????# | | ?????????????????????????????????????# | | ?????????????????????????????????????# ########## | | ?????????????????????????????????????# #????????? | | ????????????????????????????????????## ##???????? | | ??????????##############+############ #???????? | | ????????? T" #???????? | | ?????????? " / ""???? | | ??????########## #####] # ""??? | | ??????# # #???## ## " ?? | | ??????# # #????# #?? ?? | | ####### # #????# #?? ? | | + == # #????# #???#####? | | # ##### =! + #????# #????????? | | # ###?#* # #????# ????????? | +----------------------------------------------------+ Best States ------------- Heat Dissipation 62 Energy Generation 61 Energy Capacity 910 Matter Stores 300 Matter Capacity 600 Sight Range 16 Robot Scan Range 16 Terrain Scan Density 1010 Jamming Range 12 Additional Mass Support 20 Corruption Block 20 Armor Coverage 600 Resistance: KI 25 Resistance: EM 15 Core Shielding 30 Melee Speed Boost 50 Phase Shifting 10 Evasion (%) 82 Targeting Accuracy 8 Melee Accuracy 16 Target Analysis 6 Recoil Reduction 6 Salvage Targeting 3 Offensive Hacking 30 Defensive Hacking 10 Trap Extractor Capacity 6 Item Schematics ----------------- Hvy. Shield Leg | -4/Factory | Hacked Linear Accelerator | -3/Testing | Hacked Robot Schematics ------------------ None Fabricated ------------ Adv. Gravity Neutralizer | x1 | -5/Factory | Preloaded Hvy. Shield Leg | x1 | -5/Factory | Preloaded Repaired ---------- Lgt. Treads | 14% | -10/Materials Studied --------- Flexi-carbon Leg | -4/Factory | Hacked Antigrav System | -4/Factory | Hacked Xenon Bombardment Thruster | -3/Testing | Hacked Mic. Antimatter Reactor | -2/Research | Hacked Alien Tech Used ----------------- None Achievements -------------- Bob, First Of His Name Challenges ------------ None Game ------ Seed ZhirovDecoyBooster Manual? 0 Play Time 01:54:30 Cumulative 624.8 hours Start 2026.01.11 @ 11:46:18 End 2026.01.11 @ 14:03:31 Sessions 1 Manual Loads 0 Difficulty Rogue Special Mode None Game No. 349 Rogue 324 Adventurer 7 Explorer 18 Win Type 0 Total 53 Types 33/1/8/2/2/1/1/3/0/2 Lore% 95 Gallery% 89 Achievement% 64 Wizard Run 0 Options --------- Layout 0 ASCII 0 Keyboard 0 Movement Numpad Keybinds 0 Fullscreen 1 Font 12/Smallcaps Map View 83x54 Zoom Use 0% Tactical HUD 1 Map Filters NONE Filters NONE Steam 1 RUN: 381d4c10-c261-471d-b4a9-b3acfe7c7a91